[Event "Jeux du Barreau 2019"]
[Site "Paris, France"]
[Date "2019.07.10"]
[Round "5.8"]
[White "Lanoe-Campbell, Luca"]
[Black "Mangenot, Valentin"]
[Result "0-1"]
[TimeControl "15+3"]
[WhiteElo "1379"]
[BlackElo "1405"]

1. e4 {[%clk 00:15:01]} {[%emt 00:00:04]} e6 {[%clk 00:15:05]} {[%emt
00:00:02]} 2. d4 {[%clk 00:15:00]} {[%emt 00:00:03]} d5 {[%clk 00:15:07]}
{[%emt 00:00:03]} 3. e5 {[%clk 00:14:47]} {[%emt 00:00:15]} c5 {[%clk
00:15:09]} {[%emt 00:00:02]} 4. c3 {[%clk 00:14:33]} {[%emt 00:00:16]} Nc6
{[%clk 00:15:10]} {[%emt 00:00:02]} 5. Bb5 {[%clk 00:14:14]} {[%emt 00:00:20]}
Qb6 {[%clk 00:14:55]} {[%emt 00:00:19]} 6. Bxc6+ {[%clk 00:14:07]} {[%emt
00:00:09]} bxc6 {[%clk 00:14:53]} {[%emt 00:00:06]} 7. Nf3 {[%clk 00:11:53]}
{[%emt 00:02:16]} Ba6 {[%clk 00:14:07]} {[%emt 00:00:49]} 8. b3 {[%clk
00:10:01]} {[%emt 00:01:56]} Ne7 {[%clk 00:13:20]} {[%emt 00:00:50]} 9. Nbd2
{[%clk 00:09:32]} {[%emt 00:00:33]} Nf5 {[%clk 00:13:08]} {[%emt 00:00:15]} 10.
Ba3 {[%clk 00:08:14]} {[%emt 00:01:20]} cxd4 {[%clk 00:11:06]} {[%emt
00:02:06]} 11. Bxf8 {[%clk 00:05:40]} {[%emt 00:02:38]} dxc3 {[%clk 00:10:58]}
{[%emt 00:00:11]} 12. Nb1 {[%clk 00:04:53]} {[%emt 00:00:50]} Rxf8 {[%clk
00:09:25]} {[%emt 00:01:36]} 13. Nxc3 {[%clk 00:04:43]} {[%emt 00:00:12]} Qc7
{[%clk 00:07:46]} {[%emt 00:01:42]} 14. Na4 {[%clk 00:03:51]} {[%emt 00:00:55]}
f6 {[%clk 00:07:14]} {[%emt 00:00:36]} 15. Nc5 {[%clk 00:03:28]} {[%emt
00:00:26]} Qa5+ {[%clk 00:07:10]} {[%emt 00:00:06]} 16. Qd2 {[%clk 00:02:40]}
{[%emt 00:00:51]} Qxc5 {[%clk 00:07:10]} {[%emt 00:00:03]} 17. Rc1 {[%clk
00:01:59]} {[%emt 00:00:44]} Qb6 {[%clk 00:07:08]} {[%emt 00:00:05]} 18. exf6
{[%clk 00:01:43]} {[%emt 00:00:19]} Rxf6 {[%clk 00:06:42]} {[%emt 00:00:29]} 19.
g4 {[%clk 00:01:23]} {[%emt 00:00:24]} Nd6 {[%clk 00:06:36]} {[%emt 00:00:09]}
20. Nd4 {[%clk 00:01:10]} {[%emt 00:00:17]} c5 {[%clk 00:06:08]} {[%emt
00:00:29]} 21. Nc2 {[%clk 00:00:25]} {[%emt 00:00:49]} Ke7 {[%clk 00:05:49]}
{[%emt 00:00:21]} 22. f4 {[%clk 00:00:12]} {[%emt 00:00:18]} Raf8 {[%clk
00:05:15]} {[%emt 00:00:36]} 23. f5 {[%clk 00:00:13]} {[%emt 00:00:03]} exf5
{[%clk 00:04:58]} {[%emt 00:00:19]} 24. Qe3+ {[%clk 00:00:05]} {[%emt
00:00:12]} Re6 {[%clk 00:04:59]} {[%emt 00:00:02]} 25. Qxe6+ {[%clk 00:00:05]}
{[%emt 00:00:03]} Kxe6 {[%clk 00:05:00]} 26. Kd2 {[%clk 00:00:06]} {[%emt
00:00:02]} Ne4+ {[%clk 00:05:01]} {[%emt 00:00:03]} 27. Kd1 {[%clk 00:00:05]}
{[%emt 00:00:04]} Qb5 {[%clk 00:05:00]} {[%emt 00:00:03]} 28. Re1 {[%clk
00:00:05]} {[%emt 00:00:05]} Kd6 {[%clk 00:04:53]} {[%emt 00:00:09]} 29. Ne3
{[%clk 00:00:04]} {[%emt 00:00:05]} Qd3# {[%emt 00:00:14]} 0-1

[Event "Jeux du Barreau 2019"]
[Site "Paris, France"]
[Date "2019.07.10"]
[Round "5.9"]
[White "Rabbe, Laurent"]
[Black "Beaulier, Benjamin"]
[Result "0-1"]
[TimeControl "15+3"]
[WhiteElo "1399"]
[BlackElo "1658"]

1. d4 {[%clk 00:15:01]} {[%emt 00:00:04]} Nf6 {[%clk 00:15:03]} {[%emt
00:00:04]} 2. c4 {[%clk 00:14:56]} {[%emt 00:00:08]} e6 {[%clk 00:15:04]}
{[%emt 00:00:01]} 3. Bg5 {[%clk 00:14:55]} {[%emt 00:00:03]} d5 {[%clk
00:15:02]} {[%emt 00:00:06]} 4. e3 {[%clk 00:14:46]} {[%emt 00:00:12]} Be7
{[%clk 00:14:54]} {[%emt 00:00:11]} 5. Nc3 {[%clk 00:14:43]} {[%emt 00:00:05]}
O-O {[%clk 00:14:55]} {[%emt 00:00:03]} 6. Nf3 {[%clk 00:14:42]} {[%emt
00:00:04]} Nbd7 {[%clk 00:14:46]} {[%emt 00:00:13]} 7. Bd3 {[%clk 00:14:42]}
{[%emt 00:00:03]} h6 {[%clk 00:14:43]} {[%emt 00:00:07]} 8. Bh4 {[%clk
00:14:42]} {[%emt 00:00:02]} a6 {[%clk 00:14:42]} {[%emt 00:00:04]} 9. O-O
{[%clk 00:14:40]} {[%emt 00:00:03]} dxc4 {[%clk 00:14:41]} {[%emt 00:00:06]} 10.
Bxc4 {[%clk 00:14:37]} {[%emt 00:00:06]} b5 {[%clk 00:14:39]} {[%emt 00:00:05]}
11. Bd3 {[%clk 00:14:26]} {[%emt 00:00:13]} Bb7 {[%clk 00:14:37]} {[%emt
00:00:05]} 12. Rc1 {[%clk 00:14:22]} {[%emt 00:00:05]} Nd5 {[%clk 00:14:07]}
{[%emt 00:00:36]} 13. e4 {[%clk 00:13:59]} {[%emt 00:00:25]} Nxc3 {[%clk
00:14:02]} {[%emt 00:00:09]} 14. bxc3 {[%clk 00:13:48]} {[%emt 00:00:14]} Bxh4
{[%clk 00:13:54]} {[%emt 00:00:11]} 15. Nxh4 {[%clk 00:13:47]} {[%emt
00:00:03]} Qxh4 {[%clk 00:13:54]} {[%emt 00:00:04]} 16. e5 {[%clk 00:13:35]}
{[%emt 00:00:15]} Qg5 {[%clk 00:13:45]} {[%emt 00:00:12]} 17. g3 {[%clk
00:12:47]} {[%emt 00:00:52]} c5 {[%clk 00:13:30]} {[%emt 00:00:18]} 18. f4
{[%clk 00:12:26]} {[%emt 00:00:24]} Qe7 {[%clk 00:13:21]} {[%emt 00:00:12]} 19.
a4 {[%clk 00:11:53]} {[%emt 00:00:36]} cxd4 {[%clk 00:12:53]} {[%emt 00:00:31]}
20. cxd4 {[%clk 00:11:30]} {[%emt 00:00:26]} Qb4 {[%clk 00:11:49]} {[%emt
00:01:07]} 21. Rc7 {[%clk 00:10:43]} {[%emt 00:00:50]} Qxd4+ {[%clk 00:11:48]}
{[%emt 00:00:04]} 22. Rf2 {[%clk 00:10:32]} {[%emt 00:00:14]} Qd5 {[%clk
00:11:17]} {[%emt 00:00:35]} 23. Qe1 {[%clk 00:10:04]} {[%emt 00:00:30]} Qh1#
{[%emt 00:00:11]} 0-1

[Event "Jeux du Barreau 2019"]
[Site "Paris, France"]
[Date "2019.07.10"]
[Round "5.10"]
[White "Danon, Agnes"]
[Black "Constant, Arnaud"]
[Result "0-1"]
[TimeControl "15+3"]
[WhiteElo "1199"]
[BlackElo "1399"]

1. Nf3 {[%clk 00:15:03]} {[%emt 00:00:02]} Nc6 {[%clk 00:15:04]} {[%emt
00:00:03]} 2. g3 {[%clk 00:15:02]} {[%emt 00:00:04]} e5 {[%clk 00:15:04]}
{[%emt 00:00:03]} 3. Bg2 {[%clk 00:15:01]} {[%emt 00:00:04]} Nf6 {[%clk
00:15:04]} {[%emt 00:00:03]} 4. Nc3 {[%clk 00:14:34]} {[%emt 00:00:30]} Bb4
{[%clk 00:14:46]} {[%emt 00:00:21]} 5. O-O {[%clk 00:14:16]} {[%emt 00:00:21]}
d6 {[%clk 00:14:31]} {[%emt 00:00:17]} 6. a3 {[%clk 00:13:57]} {[%emt
00:00:23]} Ba5 {[%clk 00:13:52]} {[%emt 00:00:42]} 7. b4 {[%clk 00:13:29]}
{[%emt 00:00:31]} Bb6 {[%clk 00:13:54]} {[%emt 00:00:02]} 8. e4 {[%clk
00:12:56]} {[%emt 00:00:36]} Bd4 {[%clk 00:13:21]} {[%emt 00:00:33]} 9. Bb2
{[%clk 00:12:29]} {[%emt 00:00:33]} Nxe4 {[%clk 00:11:55]} {[%emt 00:01:29]} 10.
Nxe4 {[%clk 00:12:27]} {[%emt 00:00:05]} Bxb2 {[%clk 00:11:56]} {[%emt
00:00:02]} 11. Rb1 {[%clk 00:11:33]} {[%emt 00:00:57]} Bxa3 {[%clk 00:11:41]}
{[%emt 00:00:17]} 12. b5 {[%clk 00:11:27]} {[%emt 00:00:08]} Ne7 {[%clk
00:11:13]} {[%emt 00:00:31]} 13. d4 {[%clk 00:10:53]} {[%emt 00:00:37]} exd4
{[%clk 00:09:57]} {[%emt 00:01:19]} 14. Nxd4 {[%clk 00:10:54]} {[%emt
00:00:03]} O-O {[%clk 00:09:50]} {[%emt 00:00:09]} 15. Qd3 {[%clk 00:09:39]}
{[%emt 00:01:18]} Bc5 {[%clk 00:09:33]} {[%emt 00:00:20]} 16. c3 {[%clk
00:09:25]} {[%emt 00:00:18]} b6 {[%clk 00:09:33]} {[%emt 00:00:03]} 17. Ng5
{[%clk 00:09:09]} {[%emt 00:00:19]} Ng6 {[%clk 00:09:12]} {[%emt 00:00:24]} 18.
Bxa8 {[%clk 00:09:07]} {[%emt 00:00:04]} Qxg5 {[%emt 00:00:04]} 19. Be4 {[%emt
00:01:01]} Re8 {[%clk 00:06:36]} {[%emt 00:01:36]} 20. Rfe1 {[%clk 00:08:35]}
{[%emt 00:00:34]} Nf4 {[%clk 00:04:42]} {[%emt 00:01:56]} 21. Bxh7+ {[%emt
00:00:35]} Kf8 22. h4 {[%clk 00:07:13]} {[%emt 00:00:51]} Qg4 {[%clk 00:04:04]}
{[%emt 00:00:40]} 23. Re4 {[%clk 00:06:50]} {[%emt 00:00:26]} Nxd3 {[%clk
00:02:54]} {[%emt 00:01:13]} 24. Rxg4 {[%clk 00:06:36]} {[%emt 00:00:17]} Bxg4
{[%clk 00:02:52]} {[%emt 00:00:06]} 25. Bxd3 {[%clk 00:06:27]} {[%emt
00:00:12]} Ra8 {[%clk 00:02:43]} {[%emt 00:00:12]} 26. Kg2 {[%clk 00:05:24]}
{[%emt 00:01:06]} Bxd4 {[%clk 00:02:44]} {[%emt 00:00:02]} 27. cxd4 {[%clk
00:05:22]} {[%emt 00:00:04]} a5 {[%clk 00:02:40]} {[%emt 00:00:07]} 28. Be4
{[%clk 00:04:25]} {[%emt 00:01:00]} Ra7 {[%clk 00:02:41]} {[%emt 00:00:02]} 29.
Ra1 {[%clk 00:03:48]} {[%emt 00:00:40]} a4 {[%clk 00:02:40]} {[%emt 00:00:04]}
30. Bb1 {[%clk 00:03:33]} {[%emt 00:00:17]} a3 {[%clk 00:02:38]} {[%emt
00:00:05]} 31. Ba2 {[%clk 00:03:31]} {[%emt 00:00:05]} Ra4 {[%clk 00:02:36]}
{[%emt 00:00:04]} 32. d5 {[%clk 00:03:14]} {[%emt 00:00:21]} Rb4 {[%clk
00:02:17]} {[%emt 00:00:21]} 33. f3 {[%clk 00:03:03]} {[%emt 00:00:15]} Bd7
{[%clk 00:02:17]} {[%emt 00:00:03]} 34. Bc4 {[%clk 00:02:48]} {[%emt 00:00:18]}
Rxc4 {[%clk 00:02:16]} {[%emt 00:00:02]} 35. Rxa3 {[%clk 00:02:40]} {[%emt
00:00:13]} Rb4 {[%clk 00:02:14]} {[%emt 00:00:05]} 36. Ra7 {[%clk 00:02:23]}
{[%emt 00:00:20]} Ke7 {[%clk 00:02:08]} {[%emt 00:00:09]} 37. Rxc7 {[%clk
00:02:23]} {[%emt 00:00:03]} Rxb5 {[%clk 00:02:08]} {[%emt 00:00:03]} 38. Rb7
{[%clk 00:02:17]} {[%emt 00:00:09]} Rb2+ {[%clk 00:01:54]} {[%emt 00:00:16]} 39.
Kf1 {[%clk 00:02:16]} {[%emt 00:00:04]} b5 {[%clk 00:01:57]} 40. Ke1 {[%clk
00:02:09]} {[%emt 00:00:10]} b4 {[%clk 00:01:48]} {[%emt 00:00:12]} 41. Kd1
{[%clk 00:01:51]} {[%emt 00:00:20]} Kd8 {[%clk 00:01:49]} {[%emt 00:00:03]} 42.
Kc1 {[%clk 00:01:48]} {[%emt 00:00:06]} Rb3 {[%clk 00:01:44]} {[%emt 00:00:08]}
43. g4 {[%clk 00:01:19]} {[%emt 00:00:32]} Kc8 {[%clk 00:01:21]} {[%emt
00:00:25]} 44. Rb6 {[%clk 00:01:10]} {[%emt 00:00:12]} Kc7 {[%emt 00:00:21]} 45.
Ra6 {[%clk 00:00:47]} {[%emt 00:00:08]} Rxf3 {[%clk 00:01:23]} {[%emt
00:00:02]} 46. g5 {[%clk 00:00:36]} {[%emt 00:00:14]} Rf4 {[%clk 00:01:14]}
{[%emt 00:00:12]} 47. h5 {[%clk 00:00:35]} {[%emt 00:00:04]} Rh4 {[%clk
00:01:11]} {[%emt 00:00:07]} 48. Kb2 {[%clk 00:00:28]} {[%emt 00:00:09]} Rxh5
{[%clk 00:01:12]} {[%emt 00:00:02]} 49. Kb3 {[%clk 00:00:28]} {[%emt 00:00:04]}
Rxg5 {[%clk 00:01:11]} {[%emt 00:00:04]} 50. Kxb4 {[%clk 00:00:29]} {[%emt
00:00:02]} Rxd5 {[%clk 00:01:09]} {[%emt 00:00:03]} 51. Kc4 {[%clk 00:00:25]}
{[%emt 00:00:08]} Rh5 {[%clk 00:01:04]} {[%emt 00:00:08]} 52. Ra7+ {[%clk
00:00:17]} {[%emt 00:00:11]} Kd8 {[%clk 00:01:06]} {[%emt 00:00:01]} 53. Rb7
{[%clk 00:00:15]} {[%emt 00:00:05]} g5 {[%clk 00:01:05]} {[%emt 00:00:03]} 0-1

[Event "Jeux du Barreau 2019"]
[Site "Paris, France"]
[Date "2019.07.10"]
[Round "6.1"]
[White "Mungunkhuu, Mijgee"]
[Black "Vandeweeghe, Simon"]
[Result "1-0"]
[TimeControl "15+3"]
[WhiteElo "2219"]
[BlackElo "2036"]

1. c4 {[%clk 00:15:04]} e5 {[%clk 00:15:05]} {[%emt 00:00:02]} 2. Nc3 {[%clk
00:15:06]} {[%emt 00:00:01]} Nc6 {[%clk 00:15:07]} 3. g3 {[%clk 00:15:08]}
{[%emt 00:00:01]} g6 {[%clk 00:15:09]} {[%emt 00:00:01]} 4. Bg2 {[%clk
00:15:09]} Bg7 {[%clk 00:15:11]} 5. d3 {[%clk 00:15:11]} {[%emt 00:00:02]} d6
{[%clk 00:15:12]} {[%emt 00:00:02]} 6. Nf3 {[%clk 00:15:13]} {[%emt 00:00:02]}
h6 {[%clk 00:15:08]} {[%emt 00:00:06]} 7. O-O {[%clk 00:15:14]} {[%emt
00:00:02]} Be6 {[%clk 00:15:10]} {[%emt 00:00:02]} 8. Rb1 {[%clk 00:15:16]}
{[%emt 00:00:01]} Qd7 {[%clk 00:15:12]} {[%emt 00:00:01]} 9. Nd5 {[%clk
00:15:14]} {[%emt 00:00:05]} f5 {[%clk 00:14:17]} {[%emt 00:00:58]} 10. b4
{[%clk 00:15:13]} {[%emt 00:00:05]} Nf6 {[%clk 00:14:13]} {[%emt 00:00:06]} 11.
b5 {[%clk 00:15:09]} {[%emt 00:00:06]} Nd8 {[%clk 00:13:48]} {[%emt 00:00:29]}
12. Qb3 {[%clk 00:14:53]} {[%emt 00:00:19]} O-O {[%clk 00:13:32]} {[%emt
00:00:19]} 13. a4 {[%clk 00:14:50]} {[%emt 00:00:06]} Kh7 {[%clk 00:13:26]}
{[%emt 00:00:09]} 14. a5 {[%clk 00:14:48]} {[%emt 00:00:05]} c6 {[%clk
00:12:40]} {[%emt 00:00:49]} 15. Nc3 {[%clk 00:14:45]} {[%emt 00:00:06]} g5
{[%clk 00:12:11]} {[%emt 00:00:31]} 16. Ba3 {[%clk 00:13:16]} {[%emt 00:01:33]}
f4 {[%clk 00:07:56]} {[%emt 00:04:17]} 17. Qc2 {[%clk 00:12:57]} {[%emt
00:00:22]} Bf5 {[%clk 00:06:35]} {[%emt 00:01:23]} 18. Nd2 {[%clk 00:12:39]}
{[%emt 00:00:20]} Re8 {[%clk 00:06:03]} {[%emt 00:00:37]} 19. a6 {[%clk
00:12:35]} {[%emt 00:00:07]} bxa6 {[%clk 00:05:43]} {[%emt 00:00:23]} 20. bxc6
{[%clk 00:12:36]} {[%emt 00:00:02]} Nxc6 {[%clk 00:05:31]} {[%emt 00:00:15]} 21.
Qa4 {[%clk 00:12:33]} {[%emt 00:00:05]} Rac8 {[%clk 00:05:03]} {[%emt
00:00:32]} 22. Qxa6 {[%clk 00:12:33]} {[%emt 00:00:03]} Re7 {[%clk 00:04:43]}
{[%emt 00:00:22]} 23. Rfe1 {[%clk 00:12:20]} {[%emt 00:00:17]} fxg3 {[%emt
00:01:02]} 24. hxg3 {[%clk 00:12:20]} {[%emt 00:00:02]} Bh3 {[%clk 00:03:18]}
{[%emt 00:00:31]} 25. Nde4 {[%clk 00:11:57]} {[%emt 00:00:26]} Bxg2 {[%clk
00:02:16]} {[%emt 00:01:05]} 26. Kxg2 {[%clk 00:11:58]} {[%emt 00:00:01]} Re6
{[%clk 00:01:27]} {[%emt 00:00:52]} 27. Nxf6+ {[%clk 00:10:52]} {[%emt
00:01:09]} Rxf6 {[%clk 00:01:11]} {[%emt 00:00:19]} 28. Ne4 {[%clk 00:10:52]}
{[%emt 00:00:02]} Re6 {[%clk 00:01:07]} {[%emt 00:00:08]} 29. Rb7 {[%clk
00:10:46]} {[%emt 00:00:10]} Rc7 {[%clk 00:01:02]} {[%emt 00:00:08]} 30. Reb1
{[%clk 00:10:47]} Nd8 {[%clk 00:00:36]} {[%emt 00:00:29]} 31. Rxc7 {[%clk
00:10:23]} {[%emt 00:00:28]} Qxc7 {[%clk 00:00:37]} {[%emt 00:00:02]} 32. Bxd6
{[%clk 00:10:20]} {[%emt 00:00:06]} Qc6 {[%clk 00:00:17]} {[%emt 00:00:23]} 33.
Qxc6 {[%clk 00:10:05]} {[%emt 00:00:18]} Nxc6 {[%clk 00:00:19]} 34. Rb7 {[%clk
00:10:01]} {[%emt 00:00:07]} Kg6 {[%clk 00:00:15]} {[%emt 00:00:08]} 35. Rc7
{[%clk 00:10:00]} {[%emt 00:00:03]} Nd4 {[%clk 00:00:12]} {[%emt 00:00:06]} 1-0

[Event "Jeux du Barreau 2019"]
[Site "Paris, France"]
[Date "2019.07.10"]
[Round "6.2"]
[White "Aflalo, Sophie"]
[Black "Chanel, Virgile"]
[Result "0-1"]
[TimeControl "15+3"]
[WhiteElo "2094"]
[BlackElo "1991"]

1. Nf3 {[%clk 00:15:05]} d6 {[%clk 00:15:00]} {[%emt 00:00:06]} 2. c4 {[%clk
00:15:06]} {[%emt 00:00:02]} e5 {[%clk 00:14:59]} {[%emt 00:00:04]} 3. d3
{[%clk 00:14:51]} {[%emt 00:00:18]} g6 {[%clk 00:14:44]} {[%emt 00:00:18]} 4.
g3 {[%clk 00:14:48]} {[%emt 00:00:06]} Bg7 {[%clk 00:14:45]} {[%emt 00:00:02]}
5. Bg2 {[%clk 00:14:48]} {[%emt 00:00:03]} f5 {[%clk 00:14:23]} {[%emt
00:00:26]} 6. Nc3 {[%clk 00:14:28]} {[%emt 00:00:23]} Nf6 {[%clk 00:14:23]}
{[%emt 00:00:02]} 7. Rb1 {[%clk 00:14:01]} {[%emt 00:00:30]} a5 {[%clk
00:13:48]} {[%emt 00:00:39]} 8. a3 {[%clk 00:13:58]} {[%emt 00:00:07]} O-O
{[%clk 00:13:20]} {[%emt 00:00:30]} 9. b4 {[%clk 00:13:56]} {[%emt 00:00:05]}
axb4 {[%clk 00:13:13]} {[%emt 00:00:11]} 10. axb4 {[%clk 00:13:56]} {[%emt
00:00:02]} h6 {[%clk 00:12:43]} {[%emt 00:00:33]} 11. O-O {[%clk 00:13:57]}
{[%emt 00:00:02]} Kh7 {[%clk 00:12:45]} {[%emt 00:00:02]} 12. Bb2 {[%clk
00:13:57]} {[%emt 00:00:03]} c6 {[%clk 00:12:13]} {[%emt 00:00:34]} 13. e3
{[%clk 00:13:56]} {[%emt 00:00:04]} Be6 {[%clk 00:12:07]} {[%emt 00:00:09]} 14.
b5 {[%clk 00:13:32]} {[%emt 00:00:28]} Nbd7 {[%clk 00:11:57]} {[%emt 00:00:12]}
15. d4 {[%clk 00:12:15]} {[%emt 00:01:20]} Bxc4 {[%clk 00:11:40]} {[%emt
00:00:20]} 16. bxc6 {[%clk 00:11:51]} {[%emt 00:00:28]} bxc6 {[%clk 00:10:22]}
{[%emt 00:01:22]} 17. Re1 {[%clk 00:11:48]} {[%emt 00:00:05]} e4 {[%clk
00:10:12]} {[%emt 00:00:13]} 18. Nd2 {[%clk 00:11:08]} {[%emt 00:00:42]} Bd3
{[%clk 00:10:14]} {[%emt 00:00:02]} 19. Rc1 {[%clk 00:11:06]} {[%emt 00:00:05]}
c5 {[%clk 00:09:05]} {[%emt 00:01:12]} 20. f3 {[%emt 00:00:15]} cxd4 {[%clk
00:08:37]} {[%emt 00:00:19]} 21. exd4 {[%clk 00:11:05]} {[%emt 00:00:03]} Qb6
{[%clk 00:07:42]} {[%emt 00:00:59]} 22. Ba1 {[%clk 00:06:14]} {[%emt 00:04:54]}
Qxd4+ {[%clk 00:07:24]} {[%emt 00:00:21]} 23. Kh1 {[%clk 00:06:17]} {[%emt
00:00:01]} Rxa1 {[%clk 00:06:26]} {[%emt 00:01:00]} 24. Rxa1 {[%clk 00:06:19]}
{[%emt 00:00:01]} Qxc3 {[%clk 00:06:03]} {[%emt 00:00:26]} 25. Ra7 {[%clk
00:05:43]} {[%emt 00:00:38]} d5 {[%clk 00:05:35]} {[%emt 00:00:31]} 26. Nf1
{[%clk 00:04:32]} {[%emt 00:01:14]} Ne5 {[%clk 00:04:48]} {[%emt 00:00:51]} 27.
fxe4 {[%clk 00:03:36]} {[%emt 00:00:58]} Nxe4 {[%clk 00:04:12]} {[%emt
00:00:39]} 28. Ra2 {[%clk 00:03:27]} {[%emt 00:00:12]} Ng4 {[%clk 00:03:56]}
{[%emt 00:00:19]} 29. Qc1 {[%clk 00:03:04]} {[%emt 00:00:26]} Qd4 {[%clk
00:03:17]} {[%emt 00:00:42]} 30. Ne3 {[%clk 00:02:54]} {[%emt 00:00:13]} Nef2+
{[%clk 00:01:14]} {[%emt 00:02:06]} 31. Kg1 {[%clk 00:02:45]} {[%emt 00:00:12]}
Ne4 {[%clk 00:01:01]} {[%emt 00:00:16]} 32. h3 {[%clk 00:02:43]} {[%emt
00:00:05]} Nxe3 {[%clk 00:00:57]} {[%emt 00:00:07]} 33. Rxe3 {[%clk 00:02:41]}
{[%emt 00:00:05]} Nxg3 {[%clk 00:00:33]} {[%emt 00:00:27]} 34. Kh2 {[%clk
00:01:46]} {[%emt 00:00:57]} Be5 {[%clk 00:00:24]} {[%emt 00:00:12]} 35. Rxg3
{[%clk 00:01:36]} {[%emt 00:00:13]} Bxg3+ {[%clk 00:00:20]} {[%emt 00:00:07]}
36. Kxg3 {[%clk 00:01:37]} {[%emt 00:00:01]} Qe5+ {[%clk 00:00:16]} {[%emt
00:00:08]} 37. Kf2 {[%clk 00:01:36]} {[%emt 00:00:03]} Re8 {[%clk 00:00:10]}
{[%emt 00:00:10]} 38. Kg1 {[%clk 00:00:46]} {[%emt 00:00:52]} Qe1+ {[%clk
00:00:11]} {[%emt 00:00:03]} 39. Qxe1 {[%clk 00:00:48]} Rxe1+ {[%clk 00:00:14]}
40. Kf2 {[%clk 00:00:48]} {[%emt 00:00:02]} Re7 {[%clk 00:00:10]} {[%emt
00:00:07]} 41. Bxd5 {[%clk 00:00:46]} {[%emt 00:00:06]} Be4 {[%clk 00:00:12]}
{[%emt 00:00:01]} 42. Bc4 {[%clk 00:00:43]} {[%emt 00:00:05]} Kg7 {[%clk
00:00:14]} {[%emt 00:00:02]} 43. Ra6 {[%clk 00:00:40]} {[%emt 00:00:06]} g5
{[%clk 00:00:13]} {[%emt 00:00:04]} 44. Rd6 {[%clk 00:00:35]} {[%emt 00:00:07]}
Rc7 {[%clk 00:00:16]} 45. Be2 {[%clk 00:00:24]} {[%emt 00:00:15]} Rc6 {[%clk
00:00:17]} {[%emt 00:00:01]} 46. Rd7+ {[%clk 00:00:25]} {[%emt 00:00:02]} Kf6
{[%clk 00:00:20]} 47. Rh7 {[%clk 00:00:09]} {[%emt 00:00:19]} Ke5 {[%clk
00:00:22]} 48. Rh8 {[%clk 00:00:11]} {[%emt 00:00:02]} Kf4 {[%clk 00:00:22]}
{[%emt 00:00:03]} 49. Rd8 {[%clk 00:00:09]} {[%emt 00:00:05]} Rc2 {[%clk
00:00:23]} {[%emt 00:00:01]} 50. Rd1 {[%clk 00:00:06]} {[%emt 00:00:04]} g4
{[%clk 00:00:19]} {[%emt 00:00:09]} 51. hxg4 {[%clk 00:00:06]} {[%emt
00:00:04]} fxg4 {[%clk 00:00:21]} {[%emt 00:00:01]} 52. Kf1 {[%clk 00:00:05]}
{[%emt 00:00:04]} Rxe2 {[%clk 00:00:17]} {[%emt 00:00:07]} 53. Rd8 {[%clk
00:00:04]} {[%emt 00:00:03]} Ra2 {[%clk 00:00:15]} {[%emt 00:00:04]} 54. Rh8
{[%clk 00:00:05]} {[%emt 00:00:03]} Kf3 {[%clk 00:00:13]} {[%emt 00:00:05]} 55.
Ke1 {[%clk 00:00:06]} {[%emt 00:00:02]} g3 {[%clk 00:00:12]} {[%emt 00:00:04]}
56. Rxh6 {[%clk 00:00:08]} Ra1+ {[%clk 00:00:10]} {[%emt 00:00:06]} 57. Kd2
{[%clk 00:00:10]} g2 {[%clk 00:00:11]} {[%emt 00:00:02]} 0-1

[Event "Jeux du Barreau 2019"]
[Site "Paris, France"]
[Date "2019.07.10"]
[Round "6.3"]
[White "Levy, David"]
[Black "Rachid, Danial"]
[Result "0-1"]
[TimeControl "15+3"]
[WhiteElo "1511"]
[BlackElo "2020"]

1. d4 {[%clk 00:15:04]} {[%emt 00:00:01]} Nf6 {[%clk 00:15:04]} {[%emt
00:00:02]} 2. c4 {[%clk 00:15:04]} {[%emt 00:00:03]} c5 {[%clk 00:15:01]}
{[%emt 00:00:07]} 3. Nf3 {[%clk 00:15:05]} {[%emt 00:00:01]} g6 {[%clk
00:15:01]} {[%emt 00:00:03]} 4. Nc3 {[%clk 00:15:02]} {[%emt 00:00:06]} cxd4
{[%clk 00:14:51]} {[%emt 00:00:12]} 5. Nxd4 {[%clk 00:15:03]} {[%emt 00:00:02]}
Bg7 {[%clk 00:14:52]} {[%emt 00:00:02]} 6. e4 {[%clk 00:14:19]} {[%emt
00:00:47]} d6 {[%clk 00:14:50]} {[%emt 00:00:06]} 7. Be2 {[%clk 00:14:20]}
{[%emt 00:00:02]} O-O {[%clk 00:14:50]} {[%emt 00:00:03]} 8. Be3 {[%clk
00:14:16]} {[%emt 00:00:06]} a6 {[%clk 00:14:52]} {[%emt 00:00:03]} 9. O-O
{[%clk 00:14:17]} {[%emt 00:00:02]} Bd7 {[%clk 00:14:44]} {[%emt 00:00:11]} 10.
Rc1 {[%clk 00:14:04]} {[%emt 00:00:16]} Nc6 {[%clk 00:14:40]} {[%emt 00:00:07]}
11. f3 {[%clk 00:14:02]} {[%emt 00:00:04]} Rc8 {[%clk 00:14:41]} {[%emt
00:00:03]} 12. Qd2 {[%clk 00:13:50]} {[%emt 00:00:15]} Ne5 {[%clk 00:14:18]}
{[%emt 00:00:25]} 13. b3 {[%clk 00:13:49]} {[%emt 00:00:04]} Qa5 {[%clk
00:13:44]} {[%emt 00:00:38]} 14. Rfd1 {[%clk 00:13:36]} {[%emt 00:00:16]} Nc6
{[%clk 00:13:37]} {[%emt 00:00:10]} 15. Nd5 {[%clk 00:13:32]} {[%emt 00:00:07]}
Qxd2 {[%clk 00:13:20]} {[%emt 00:00:20]} 16. Rxd2 {[%clk 00:13:34]} {[%emt
00:00:01]} Nxd5 {[%clk 00:13:06]} {[%emt 00:00:18]} 17. cxd5 {[%clk 00:13:35]}
{[%emt 00:00:02]} Nxd4 {[%clk 00:13:02]} {[%emt 00:00:07]} 18. Rxc8 {[%clk
00:13:34]} {[%emt 00:00:04]} Nxe2+ {[%clk 00:13:00]} {[%emt 00:00:04]} 19. Rxe2
{[%clk 00:13:35]} {[%emt 00:00:01]} Rxc8 {[%clk 00:13:01]} {[%emt 00:00:02]}
0-1